bitfinex-derivatives/quotes_BTCF0:USTF0_20250216
["timestamp","ask_amount","ask_price","bid_price","bid_amount"]
[1739728146508,0.03085455,97053.0,97052.0,0.5678452]
[1739728146698,0.03085455,97053.0,97052.0,0.5688452]
[1739728153812,0.08095114,97053.0,97052.0,0.5688452]
[1739728155716,0.08095114,97053.0,97052.0,0.2080452]
[1739728155911,0.08095114,97053.0,97052.0,0.9296452]
[1739728160421,0.03085455,97053.0,97052.0,0.9296452]
[1739728167812,0.08095165,97053.0,97052.0,0.9296452]
[1739728175018,0.03085455,97053.0,97052.0,0.9296452]
[1739728203243,0.15436892,97060.0,97052.0,0.7236]
[1739728203543,0.21736343,97067.0,97066.0,0.2060156]
[1739728203742,0.21736343,97067.0,97066.0,0.5668156]
[1739728204445,0.00015455,97076.0,97066.0,0.3608]
[1739728204651,0.00015455,97076.0,97073.0,0.5668007]
[1739728206044,0.00015455,97076.0,97073.0,0.57699202]
[1739728207337,0.00204,97074.0,97073.0,0.57699202]
[1739728221048,0.00204,97074.0,97073.0,0.93779202]
[1739728222248,1e-08,97079.0,97078.0,0.2059901]
[1739728222449,0.0322,97089.0,97088.0,0.2059689]
[1739728223753,0.0322,97089.0,97082.0,0.3608]
[1739728223956,0.0322,97089.0,97079.0,0.00015455]
[1739728223957,0.3608,97084.0,97079.0,0.00015455]
[1739728224144,0.3608,97084.0,97073.0,0.2060804]
[1739728224343,0.12817992,97083.0,97073.0,8e-05]
[1739728224548,0.2060007,97073.0,97070.0,8e-05]
[1739728224749,0.21630976,97073.0,97070.0,8e-05]
[1739728225350,0.2060049,97071.0,97070.0,8e-05]
[1739728226055,0.2060113,97068.0,97067.0,4e-05]
[1739728227354,0.2060113,97068.0,97067.0,0.00104]
[1739728234763,0.03114,97070.0,97063.0,4e-05]
[1739728234959,0.5668198,97064.0,97063.0,4e-05]
[1739728236067,0.5668198,97064.0,97063.0,0.00104]
[1739728236866,0.5668198,97064.0,97063.0,4e-05]
[1739728238276,0.5668198,97064.0,97063.0,0.00104]
[1739728238463,0.5678198,97064.0,97063.0,0.00204]
[1739728239072,0.5668198,97064.0,97063.0,0.00104]
[1739728239275,0.3618,97064.0,97028.0,0.00073909]
[1739728239577,0.2060559,97047.0,97042.0,0.2371656]
[1739728239767,0.0967,97046.0,97043.0,0.01057737]
[1739728240476,0.0967,97046.0,97043.0,8e-05]
[1739728241474,0.2070559,97047.0,97044.0,0.2374614]
[1739728241863,0.2070559,97047.0,97045.0,0.03204]
[1739728242275,0.001,97046.0,97045.0,0.03204]
[1739728242478,0.09948,97046.0,97045.0,0.03204]
[1739728242670,0.10048,97046.0,97045.0,0.03204]
[1739728243067,0.09848,97046.0,97045.0,0.03204]
[1739728243678,0.304538,97046.0,97045.0,0.03204]
[1739728243978,0.206058,97046.0,97045.0,0.03204]
[1739728244566,0.207058,97046.0,97045.0,0.03204]
[1739728244961,0.208058,97046.0,97045.0,0.03204]
[1739728248863,0.002,97046.0,97045.0,0.2381001]
[1739728251181,0.002,97046.0,97045.0,0.2686001]
[1739728251382,0.10048,97046.0,97045.0,0.2686001]
[1739728255483,0.002,97046.0,97045.0,0.2686001]
[1739728256572,0.002,97046.0,97045.0,0.2685601]
[1739728260577,0.002,97046.0,97045.0,0.2380601]
[1739728261371,0.208058,97046.0,97045.0,0.2380601]
[1739728263670,0.2060601,97045.0,97044.0,0.0314]
[1739728263882,0.2363601,97045.0,97044.0,0.0314]
[1739728264081,0.2060622,97044.0,97043.0,8e-05]
[1739728266978,0.2080622,97044.0,97043.0,8e-05]
[1739728267576,0.2080622,97044.0,97043.0,0.2061443]
[1739728268582,0.36232215,97044.0,97043.0,0.2061443]
[1739728270478,0.36232215,97044.0,97043.0,8e-05]
[1739728271581,0.25816871,97044.0,97043.0,8e-05]
[1739728278088,0.25816871,97044.0,97043.0,0.2061443]
[1739728278686,0.25816871,97044.0,97043.0,8e-05]
[1739728280584,0.25816871,97044.0,97043.0,0.2061443]
[1739728282498,0.36237551,97044.0,97043.0,0.2061443]
[1739728287991,0.2080622,97044.0,97043.0,0.2061443]
[1739728292098,0.25816888,97044.0,97043.0,0.2061443]
[1739728295197,0.44296697,97044.0,97043.0,0.2061443]
[1739728295893,0.44296697,97044.0,97043.0,8e-05]
[1739728299898,0.44296697,97044.0,97025.0,0.2372022]
[1739728299899,0.23690477,97044.0,97025.0,0.2372022]
[1739728300106,0.2060834,97034.0,97026.0,0.0633]
[1739728301604,0.2060834,97034.0,97033.0,0.00204]
[1739728302402,0.2060834,97034.0,97033.0,0.01213004]
[1739728302605,0.2060834,97034.0,97033.0,0.00204]
[1739728302801,0.2060834,97034.0,97033.0,0.00404]
[1739728305711,0.2060834,97034.0,97033.0,0.0141884]
[1739728307407,0.2060834,97034.0,97033.0,0.00404]
[1739728310412,0.2060834,97034.0,97033.0,0.03464]
[1739728319027,0.15432328,97037.0,97036.0,0.2060792]
[1739728321025,0.15432328,97037.0,97036.0,0.2070792]
[1739728321417,8e-05,97044.0,97041.0,0.2060686]
[1739728323116,0.00104,97042.0,97041.0,0.2060686]
[1739728327127,0.00104,97042.0,97041.0,0.2360686]
[1739728337423,0.00104,97042.0,97041.0,0.2060686]
[1739728337627,0.09574,97042.0,97041.0,0.2060686]
[1739728337827,0.2060737,97039.0,97036.0,0.2372791]
[1739728338031,0.09574,97042.0,97036.0,0.0312]
[1739728339039,0.09474,97042.0,97036.0,0.0312]
[1739728339440,0.09474,97042.0,97041.0,0.2060686]
[1739728339831,0.09574,97042.0,97041.0,0.2060686]
[1739728350152,0.06474,97042.0,97041.0,0.2060686]
[1739728350338,0.00104,97042.0,97041.0,0.5668686]
[1739728364165,0.00104,97042.0,97041.0,0.2060686]
[1739728369164,0.2060749,97039.0,97036.0,0.0312]
[1739728369565,0.0308,97038.0,97036.0,0.0312]
[1739728369963,0.0308,97037.0,97036.0,0.0312]
[1739728370571,0.0308,97037.0,97036.0,0.0322]
[1739728371565,0.0308,97037.0,97036.0,0.2382792]
[1739728372258,4e-05,97042.0,97036.0,0.0322]
[1739728373075,4e-05,97042.0,97040.0,0.2060705]
[1739728373764,0.00104,97042.0,97040.0,0.2060705]
[1739728378275,0.00104,97042.0,97041.0,0.2060686]
[1739728473637,0.00104,97042.0,97033.0,4e-05]
[1739728473938,0.2061196,97017.0,97016.0,0.15945453]
[1739728474133,0.5669196,97017.0,97016.0,0.15945453]
[1739728474833,0.2061365,97009.0,97008.0,0.15945453]
[1739728475436,0.5669365,97009.0,97008.0,0.15945453]
[1739728477138,0.5669365,97009.0,97008.0,0.16645453]
[1739728477748,0.5669365,97009.0,97008.0,0.17345453]
[1739728478539,0.5669365,97009.0,97008.0,0.17245453]
[1739728478840,0.5669365,97009.0,97008.0,0.013]
[1739728480046,0.5669365,97009.0,97008.0,0.012]
[1739728493260,0.3608,97009.0,97008.0,0.2181387]
[1739728494967,0.5669366,97009.0,97008.0,0.012]
[1739728497669,0.3608,97009.0,97008.0,0.012]
[1739728497970,0.45952,97009.0,97008.0,0.012]
[1739728505067,0.50964573,97009.0,97008.0,0.012]
[1739728505266,0.41092573,97009.0,97008.0,0.012]
[1739728505467,0.61706233,97009.0,97008.0,0.012]
[1739728506867,0.25626233,97009.0,97008.0,0.012]
[1739728511884,0.05012573,97009.0,97008.0,0.012]
[1739728512085,0.05012573,97009.0,97008.0,0.2181386]
[1739728513975,0.05012573,97009.0,97008.0,0.012]
[1739728514193,0.25626223,97009.0,97008.0,0.012]
[1739728528585,0.25626223,97009.0,97005.0,0.23550314]
[1739728528891,0.05012573,97009.0,97005.0,0.23550314]
[1739728529292,0.05012573,97009.0,97005.0,0.02935834]
[1739728529585,0.05012573,97009.0,97006.0,0.2061408]
[1739728530894,0.05112573,97009.0,97006.0,0.2061408]
[1739728531392,0.05112573,97009.0,97006.0,0.2121408]
[1739728532492,0.18512176,97008.0,97006.0,0.2121408]
[1739728534882,0.18612176,97008.0,97006.0,0.2121408]
[1739728535688,0.05112573,97008.0,97006.0,0.2121408]
[1739728536698,0.05112573,97008.0,97006.0,0.2181408]
[1739728537692,0.05112573,97008.0,97007.0,0.2061408]
[1739728538486,0.001,97008.0,97007.0,0.2061408]
[1739728539889,0.002,97008.0,97007.0,0.2061408]
[1739728540093,0.002,97008.0,97007.0,0.2121408]
[1739728540391,0.002,97008.0,97007.0,0.2181408]
[1739728555601,0.15623979,97008.0,97007.0,0.2181408]
[1739728557201,0.16131975,97008.0,97007.0,0.2181408]
[1739728558993,0.00707996,97008.0,97007.0,0.2181408]
[1739728561195,0.00707996,97008.0,97007.0,0.012]
[1739728561401,0.21321856,97008.0,97007.0,0.012]
[1739728566507,0.21121856,97008.0,97007.0,0.004]
[1739728566709,0.21121856,97008.0,97007.0,0.008]
[1739728567305,0.43717482,97008.0,97007.0,0.008]
[1739728568011,0.2061514,97002.0,97001.0,0.02635839]
[1739728568303,0.5669514,97002.0,97001.0,0.02635839]
[1739728568609,0.57203136,97002.0,97001.0,0.02635839]
[1739728569097,0.57303136,97002.0,97001.0,0.03335839]
[1739728569298,0.57403136,97002.0,97001.0,0.04035839]
[1739728573016,0.6241662,97002.0,97001.0,0.04035839]
[1739728573819,0.2061555,97000.0,96998.0,0.01650471]
[1739728574515,0.00507996,96999.0,96998.0,0.01650471]
[1739728575115,0.00507996,96999.0,96998.0,0.02350471]
[1739728576006,0.00707996,96999.0,96998.0,0.02350471]
[1739728582919,0.00707996,96999.0,96998.0,0.22966451]
[1739728593232,0.00707996,96999.0,96998.0,0.02350471]
[1739728593423,0.21323766,96999.0,96998.0,0.02350471]
[1739728601835,0.27553766,96999.0,96998.0,0.02350471]
[1739728606139,0.26336964,96999.0,96998.0,0.22966451]
[1739728606440,0.26336964,96999.0,96998.0,0.02350471]
[1739728606631,0.26336964,96999.0,96998.0,0.05610471]
[1739728608943,0.36726329,96999.0,96998.0,0.05610471]
[1739728609241,0.36726329,96999.0,96998.0,0.06465139]
[1739728614834,0.36726329,96999.0,96998.0,0.05610471]
[1739728615746,0.21323766,96999.0,96998.0,0.05610471]
[1739728616749,0.21323766,96999.0,96998.0,0.0649326]
[1739728617644,0.21323766,96999.0,96998.0,0.05610471]
[1739728618451,0.26336878,96999.0,96998.0,0.05610471]
[1739728621954,0.05721108,96999.0,96998.0,0.05610471]
[1739728622250,0.5462033,97005.0,97004.0,0.206147]
[1739728622455,0.5453633,97005.0,97004.0,0.206147]
[1739728623047,0.1845633,97005.0,97004.0,0.206147]
[1739728623450,0.1845633,97005.0,97004.0,0.207147]
[1739728624152,0.1845633,97005.0,97004.0,0.208147]
[1739728625257,0.2061195,97017.0,97004.0,0.208147]
[1739728625258,0.36014095,97017.0,97011.0,0.2061301]
[1739728625458,0.36014095,97017.0,97012.0,0.0641]
[1739728626250,0.36014095,97017.0,97012.0,0.0317]
[1739728626450,0.15402145,97017.0,97012.0,0.0317]
[1739728626654,0.2061219,97016.0,97012.0,0.0317]
[1739728627462,0.2061219,97016.0,97012.0,0.0327]
[1739728627961,0.27750006,97017.0,97012.0,0.0327]
[1739728628264,0.27750006,97017.0,97012.0,0.001]
[1739728628451,0.12347861,97017.0,97013.0,0.0328]
[1739728629761,0.2061258,97014.0,97013.0,0.0328]
[1739728631167,0.2061258,97014.0,97013.0,0.0338]
[1739728631354,0.2061258,97014.0,97013.0,0.0348]
[1739728631554,0.2061258,97014.0,97013.0,0.002]
[1739728636264,0.5669258,97014.0,97013.0,0.002]
[1739728639171,0.57548791,97014.0,97013.0,0.002]
[1739728640763,0.62561691,97014.0,97013.0,0.002]
[1739728641460,0.2061576,96999.0,96998.0,0.0331]
[1739728642070,0.2680576,96999.0,96998.0,0.0331]
[1739728643272,0.2680576,96999.0,96997.0,8e-05]
[1739728643273,0.2061598,96998.0,96997.0,8e-05]
[1739728643471,0.3380998,96998.0,96997.0,8e-05]
[1739728643770,0.2394598,96998.0,96997.0,8e-05]
[1739728644364,0.2404598,96998.0,96997.0,0.00108]
[1739728644566,0.2414598,96998.0,96997.0,0.00108]
[1739728645373,0.25022759,96998.0,96997.0,0.00108]
[1739728646563,0.24922759,96998.0,96997.0,8e-05]
[1739728646768,0.25022759,96998.0,96997.0,0.00108]
[1739728649073,0.25022759,96998.0,96997.0,0.00104]
[1739728649475,0.2414598,96998.0,96997.0,0.00104]
[1739728650174,0.25032913,96998.0,96997.0,0.00104]
[1739728651578,0.2414598,96998.0,96997.0,0.00104]
[1739728651778,0.2081598,96998.0,96997.0,0.00104]
[1739728652080,0.3067598,96998.0,96997.0,0.00104]
[1739728653663,0.3400598,96998.0,96997.0,0.00104]
[1739728653869,0.2414598,96998.0,96997.0,0.00104]
[1739728654076,0.2081598,96998.0,96997.0,0.00104]
[1739728654276,0.3067198,96998.0,96997.0,0.00104]
[1739728654469,0.3490415,96998.0,96997.0,0.00104]
[1739728654772,0.2504815,96998.0,96997.0,0.00104]
[1739728655767,0.9720815,96998.0,96997.0,0.00104]
[1739728659881,0.9387815,96998.0,96997.0,0.00104]
[1739728660882,0.98892093,96998.0,96997.0,0.00104]
[1739728671085,1.1573366,96998.0,96997.0,0.00104]
[1739728677193,0.98892093,96998.0,96997.0,0.00104]
[1739728686503,1.15570964,96998.0,96997.0,0.00104]
[1739728687602,0.206181,96988.0,96987.0,0.0309]
[1739728687797,0.566981,96988.0,96987.0,0.0309]
[1739728688903,0.566981,96988.0,96987.0,0.2370831]
[1739728689401,0.567981,96988.0,96987.0,0.2370831]
[1739728689797,0.207181,96988.0,96987.0,0.2370831]
[1739728690101,0.206181,96988.0,96987.0,0.2370831]
[1739728690399,0.206181,96988.0,96987.0,0.0309]
[1739728691702,0.25632043,96988.0,96987.0,0.0309]
[1739728702015,0.05013943,96988.0,96987.0,0.2370832]
[1739728707706,0.15391508,96988.0,96987.0,0.2370831]
[1739728710811,0.15391508,96989.0,96987.0,0.0309]
[1739728711011,0.15391508,96989.0,96988.0,0.238781]
[1739728713816,0.15391508,96992.0,96988.0,0.0326]
[1739728714018,0.15391508,96992.0,96991.0,0.2061746]
[1739728715215,0.15491508,96992.0,96991.0,0.2061746]
[1739728715919,0.15391508,96992.0,96991.0,0.2061746]
[1739728716115,0.001,96992.0,96991.0,0.2061746]
[1739728730228,0.15491508,96992.0,96991.0,0.2061746]
[1739728732627,0.05113298,96992.0,96991.0,0.2061746]
[1739728738835,0.001,96992.0,96991.0,0.2061746]
[1739728741639,0.15502428,96992.0,96991.0,0.2061746]
[1739728745434,0.001,96992.0,96991.0,0.2061746]
[1739728751239,0.00015463,96997.0,96996.0,0.206164]
[1739728751542,0.00015463,96997.0,96996.0,0.566964]
[1739728752542,0.00215463,96997.0,96996.0,0.566964]
[1739728753050,0.00515463,96997.0,96996.0,0.566964]
[1739728754439,0.00315463,96997.0,96996.0,0.566964]
[1739728756449,0.00015463,96997.0,96996.0,0.567964]
[1739728756748,0.21406082,97006.0,96996.0,0.3618]
[1739728756949,0.21406082,97006.0,97005.0,0.5669449]
[1739728757243,0.0326,97013.0,97012.0,0.20613]
[1739728758651,0.0366,97013.0,97012.0,0.20613]
[1739728760347,0.0416,97013.0,97012.0,0.20613]
[1739728763551,0.0416,97013.0,97012.0,0.2153183]
[1739728767649,0.0416,97013.0,97006.0,0.0325]
[1739728767851,0.247728,97013.0,97006.0,0.0325]
[1739728768155,0.247728,97013.0,97008.0,0.2061367]
[1739728768745,0.2061319,97012.0,97008.0,0.2061367]
[1739728769054,0.2061323,97011.0,97008.0,0.21534924]
[1739728771458,0.2081323,97011.0,97008.0,0.21534924]
[1739728771654,0.2121323,97011.0,97008.0,0.21534924]
[1739728772358,0.2121323,97011.0,97009.0,0.206136]
[1739728773067,0.2131323,97011.0,97009.0,0.206136]
[1739728773249,0.2131323,97011.0,97010.0,0.2061343]
[1739728773449,0.2121323,97011.0,97010.0,0.2061343]
[1739728773649,0.2111323,97011.0,97010.0,0.2061343]
[1739728774058,0.005,97011.0,97010.0,0.2061343]
[1739728776563,0.05512249,97011.0,97010.0,0.2061343]
[1739728782650,0.15903742,97011.0,97010.0,0.2061343]
[1739728785360,0.005,97011.0,97010.0,0.2061343]
[1739728788761,0.005,97011.0,97010.0,0.2362343]
[1739728791572,0.18473605,97024.0,97021.0,0.2061109]
[1739728791878,0.18473605,97024.0,97021.0,0.5669109]
[1739728792571,0.154003,97026.0,97021.0,0.5669109]
[1739728792767,0.00715463,97022.0,97021.0,0.5669109]
[1739728793359,0.01315463,97022.0,97021.0,0.5669109]
[1739728802073,0.01315463,97022.0,97012.0,0.06408996]
[1739728802672,0.07724459,97022.0,97014.0,0.2061255]
[1739728802876,0.07724459,97022.0,97009.0,0.065]
[1739728803968,0.28335369,97022.0,97012.0,0.2061284]
[1739728804375,0.27635369,97022.0,97014.0,0.206125]
[1739728804575,0.07624459,97022.0,97014.0,0.206125]
[1739728805480,0.2061132,97020.0,97009.0,0.065]
[1739728805678,0.2061132,97020.0,97018.0,0.2061172]
[1739728806379,0.01215463,97022.0,97021.0,0.2061109]
[1739728807679,0.00515463,97022.0,97021.0,0.2061109]
[1739728808483,0.00715463,97022.0,97021.0,0.2061109]
[1739728808879,0.36795463,97022.0,97009.0,0.0322]
[1739728809085,0.2061312,97012.0,97008.0,0.36132]
[1739728809287,0.0942,97011.0,97008.0,0.3608]
[1739728809485,0.09876,97010.0,97008.0,0.3608]
[1739728809983,0.09876,97010.0,97008.0,0.5669373]
[1739728810188,0.0942,97011.0,97009.0,0.2061353]
[1739728811078,0.0618,97011.0,97009.0,0.2061353]
[1739728811478,0.0638,97011.0,97009.0,0.2061353]
[1739728811680,0.001,97010.0,97009.0,0.2061353]
[1739728812184,0.0638,97011.0,97009.0,0.2061353]
[1739728812385,0.0648,97011.0,97009.0,0.2061353]
[1739728812788,0.0638,97011.0,97009.0,0.2061353]
[1739728812986,0.001,97010.0,97009.0,0.2061353]
[1739728813491,0.0648,97011.0,97009.0,0.2061353]
[1739728814291,0.002,97010.0,97009.0,0.2061353]
[1739728814995,0.0628,97011.0,97009.0,0.2061353]
[1739728815192,0.0648,97011.0,97009.0,0.2061353]
[1739728815500,0.001,97010.0,97009.0,0.2061353]
[1739728815998,0.002,97010.0,97009.0,0.2061353]
[1739728816699,0.003,97010.0,97009.0,0.2061353]
[1739728817302,0.001,97010.0,97009.0,0.2061353]
[1739728817500,0.003,97010.0,97009.0,0.2061353]
[1739728819600,0.002,97010.0,97009.0,0.2061353]
[1739728819803,0.003,97010.0,97009.0,0.2061353]
[1739728820991,0.001,97010.0,97009.0,0.2061353]
[1739728821198,0.003,97010.0,97009.0,0.2061353]
[1739728826310,0.002,97010.0,97009.0,0.2061353]
[1739728827415,0.18607726,97021.0,97017.0,0.2061175]
[1739728827611,0.18607726,97021.0,97018.0,0.0314]
[1739728828708,0.19007726,97021.0,97018.0,0.0314]
[1739728829107,0.19007726,97021.0,97020.0,0.206113]
[1739728830013,0.0363,97021.0,97020.0,0.206113]
[1739728830515,0.0413,97021.0,97020.0,0.206113]
[1739728830905,0.2061135,97020.0,97018.0,0.0314]
[1739728832110,0.2111135,97020.0,97018.0,0.0314]
[1739728833519,0.2141135,97020.0,97018.0,0.0314]
[1739728834221,0.2061152,97019.0,97018.0,0.0314]
[1739728834721,0.2061152,97019.0,97018.0,0.2375173]
[1739728835113,0.2061152,97019.0,97018.0,0.2061173]
[1739728835419,0.2101152,97019.0,97018.0,0.2061173]
[1739728835719,0.2131152,97019.0,97018.0,0.2061173]
[1739728836111,0.007,97019.0,97012.0,0.0318]
[1739728836406,0.007,97019.0,97013.0,0.2061264]
[1739728836407,0.2061279,97014.0,97013.0,0.2061264]
[1739728837608,0.0311,97016.0,97015.0,0.2061237]
[1739728838717,0.002,97016.0,97015.0,0.2061237]
[1739728838924,0.005,97016.0,97015.0,0.2061237]
[1739728839510,0.14877726,97021.0,97012.0,0.0318]
[1739728839715,0.18473605,97030.0,97029.0,0.2060939]
[1739728840015,0.18473605,97030.0,97029.0,0.5668939]
[1739728840634,8e-05,97035.0,97033.0,0.2060854]
[1739728842218,0.00704,97034.0,97033.0,0.2060854]
[1739728842425,0.03924,97034.0,97033.0,0.2060854]
[1739728842922,0.03924,97034.0,97030.0,0.0312]
[1739728843222,0.03924,97034.0,97029.0,0.3608]
[1739728843520,0.04624,97034.0,97029.0,0.3608]
[1739728843714,0.206091,97031.0,97029.0,0.3608]
[1739728844115,0.206091,97031.0,97030.0,0.001]
[1739728844717,0.206091,97031.0,97029.0,0.3608]
[1739728844913,0.0329,97030.0,97029.0,0.3618]
[1739728846325,0.0389,97030.0,97029.0,0.3618]
[1739728846527,0.0389,97030.0,97029.0,0.3608]
[1739728847426,0.0459,97030.0,97029.0,0.3618]
[1739728850224,0.0459,97030.0,97029.0,0.5678939]
[1739728851534,0.2519918,97030.0,97029.0,0.3618]
[1739728853331,0.2519918,97030.0,97029.0,0.001]
[1739728856940,0.6127918,97030.0,97029.0,0.001]
[1739728861341,0.62255427,97030.0,97029.0,0.001]
[1739728861641,0.6127918,97030.0,97029.0,0.001]
[1739728862531,0.62244193,97030.0,97029.0,0.001]
[1739728864437,0.41635013,97030.0,97016.0,0.0322]
[1739728864746,0.2061343,97010.0,97007.0,0.20614]
[1739728865038,0.2061343,97010.0,97008.0,0.2061377]
[1739728865231,0.2061343,97010.0,97009.0,0.2363364]
[1739728865427,0.0617,97016.0,96998.0,0.0313]
[1739728865428,0.206147,97004.0,97003.0,0.2061473]
[1739728867446,0.206147,97004.0,97003.0,0.002]
[1739728868641,0.3608,97009.0,97003.0,0.004]
[1739728868945,0.304859,97008.0,97003.0,0.2101492]
[1739728869139,0.206139,97008.0,97003.0,0.2101492]
[1739728870351,0.2061469,97005.0,97003.0,0.002]
[1739728870653,0.206147,97004.0,97003.0,0.002]
[1739728871149,0.206147,97004.0,97003.0,0.001]
[1739728871849,0.2061513,97002.0,97001.0,0.04112934]
[1739728872145,0.2061513,97002.0,97001.0,0.0317]
[1739728873449,0.2061513,97002.0,97001.0,0.0337]
[1739728873946,0.2061513,97002.0,97001.0,0.0367]
[1739728874139,0.0633,97006.0,97001.0,0.0367]
[1739728874443,0.0302,97006.0,97003.0,0.2061487]
[1739728875250,0.2363431,97006.0,97003.0,0.2061487]
[1739728875747,0.2363431,97006.0,97003.0,0.2071487]
[1739728876050,0.3608,97005.0,97004.0,0.2061464]
[1739728878048,0.3608,97005.0,97004.0,0.2091464]
[1739728879150,0.3608,97005.0,97004.0,0.003]
[1739728879357,0.46012,97005.0,97004.0,0.003]
[1739728880357,0.6662649,97005.0,97004.0,0.003]
[1739728880652,0.5669449,97005.0,97004.0,0.003]
[1739728884063,0.5669449,97005.0,97001.0,0.0317]
[1739728884064,0.3608,97005.0,97001.0,0.0317]
[1739728884251,0.3608,97005.0,97000.0,0.00015463]
[1739728884561,0.2061598,96998.0,96993.0,0.0315]
[1739728885753,0.2061598,96998.0,96997.0,0.00404]
[1739728886253,0.2061768,96990.0,96989.0,0.00154643]
[1739728888067,0.001,96990.0,96985.0,0.03338]
[1739728888257,0.2062002,96979.0,96967.0,0.20610407]
[1739728888569,0.2062002,96979.0,96976.0,0.0333]
[1739728888865,0.2062002,96979.0,96976.0,0.03314017]
[1739728889871,0.2072002,96979.0,96976.0,0.03314017]
[1739728890165,0.001,96979.0,96976.0,0.03294034]
[1739728890551,0.001,96979.0,96976.0,0.03270051]
[1739728890969,0.002,96979.0,96976.0,0.03470051]
[1739728891169,0.002,96979.0,96977.0,0.03012017]
[1739728891359,0.10188,96978.0,96977.0,0.03012017]
[1739728891860,0.10188,96978.0,96977.0,0.02980034]
[1739728892366,0.46268,96978.0,96977.0,0.02980034]
[1739728892967,0.46368,96978.0,96977.0,0.02980034]
[1739728894068,0.46368,96978.0,96976.0,0.03470051]
[1739728894254,0.3628,96978.0,96977.0,0.002]
[1739728894460,0.46488,96978.0,96977.0,0.002]
[1739728895163,0.10308,96978.0,96976.0,0.03470051]
[1739728895467,0.002,96978.0,96976.0,0.03470051]
[1739728896573,0.002,96978.0,96976.0,0.24090671]
[1739728896868,0.001,96978.0,96976.0,0.23890671]
[1739728897062,0.002,96978.0,96977.0,0.002]
[1739728897265,0.10432,96978.0,96977.0,0.0322]
[1739728897566,0.10332,96978.0,96977.0,0.0322]
[1739728897773,0.10436,96978.0,96977.0,0.391]
[1739728897955,0.10436,96978.0,96977.0,0.421]
[1739728898154,0.10336,96978.0,96977.0,0.421]
[1739728898362,0.002,96978.0,96977.0,0.421]
[1739728898566,0.002,96978.0,96977.0,0.423]
[1739728901268,0.002,96978.0,96977.0,0.42268017]
[1739728910082,0.002,96978.0,96977.0,0.62888457]
[1739728914071,0.002,96978.0,96977.0,0.59888457]
[1739728916287,0.002,96978.0,96977.0,0.59856474]
[1739728917591,8e-05,96985.0,96984.0,0.2061895]
[1739728919089,0.00108,96985.0,96984.0,0.2081895]
[1739728920387,0.00208,96985.0,96984.0,0.2081895]
[1739728925291,4e-05,96988.0,96987.0,0.2061832]
[1739728925488,4e-05,96989.0,96987.0,0.20590337]
[1739728925697,4e-05,96989.0,96988.0,0.3608]
[1739728925992,0.0322,96996.0,96995.0,0.2061661]
[1739728926195,0.0322,96996.0,96995.0,0.20592627]
[1739728926787,0.0322,96996.0,96995.0,0.20572644]
[1739728927294,0.0322,96996.0,96995.0,0.20556661]
[1739728927596,0.0322,96996.0,96995.0,0.20656661]
[1739728927996,0.0322,96996.0,96995.0,0.20644678]
[1739728928296,0.0322,96996.0,96995.0,0.20944678]
[1739728933099,0.0322,96996.0,96995.0,0.20932695]
[1739728936405,0.0332,97009.0,96995.0,0.004]
[1739728936594,0.0332,97009.0,97001.0,0.5669534]
[1739728936794,0.0302,97008.0,97001.0,0.5669534]
[1739728938213,0.0302,97008.0,97001.0,0.5679534]
[1739728938507,0.0302,97008.0,97001.0,0.57753555]
[1739728940407,0.0302,97008.0,97001.0,0.57853555]
[1739728942105,0.0302,97008.0,97001.0,0.21773555]
[1739728942310,0.0302,97008.0,97001.0,0.57853555]
[1739728945207,0.2061493,97003.0,97001.0,0.37238215]
[1739728945801,0.3929,97002.0,97001.0,0.002]
[1739728946007,0.3929,97002.0,97001.0,0.001]
[1739728946311,0.2061619,96997.0,96996.0,4e-05]
[1739728946803,0.2061619,96997.0,96996.0,0.0099887]
[1739728947002,0.2061619,96997.0,96996.0,4e-05]
[1739728947714,0.2061619,96997.0,96996.0,0.00104]
[1739728948412,0.2061619,96997.0,96996.0,0.00304]
[1739728958214,0.3608,96997.0,96985.0,4e-05]
[1739728958410,0.5669832,96987.0,96985.0,4e-05]
[1739728958811,0.0638,96986.0,96985.0,4e-05]
[1739728959111,0.0638,96986.0,96975.0,0.00154658]
[1739728959112,0.2062065,96976.0,96975.0,0.00142675]
[1739728959514,0.3608,96978.0,96963.0,0.0301]
[1739728959720,0.2062214,96969.0,96963.0,0.02994017]
[1739728959909,0.0316,96968.0,96963.0,0.02994017]
[1739728960312,0.2062259,96967.0,96963.0,0.02994017]
[1739728960812,0.2062259,96967.0,96963.0,0.03976812]
[1739728961415,0.2072259,96967.0,96963.0,0.03952829]
[1739728961622,0.2082259,96967.0,96963.0,0.03952829]
[1739728961820,0.2082259,96967.0,96964.0,0.2062314]
[1739728962128,0.2082259,96967.0,96964.0,0.20595157]
[1739728962729,0.2062287,96966.0,96963.0,0.01002778]
[1739728963025,0.2062287,96966.0,96961.0,0.3608]
[1739728963326,0.2062363,96962.0,96961.0,0.3608]
[1739728965830,0.2072363,96962.0,96961.0,0.37172377]
[1739728966031,0.2082363,96962.0,96961.0,0.37140394]
[1739728967429,0.002,96962.0,96961.0,0.37140394]
[1739728968132,0.002,96962.0,96961.0,0.57764234]
[1739728976339,0.002,96962.0,96961.0,0.57732251]
[1739728984846,0.002,96962.0,96961.0,0.57796217]
[1739728989064,0.002,96962.0,96961.0,0.93876217]
[1739728989263,0.00015463,96980.0,96979.0,0.2062002]
[1739728990361,0.00115463,96980.0,96979.0,0.2072002]
[1739728991259,0.00115463,96980.0,96979.0,0.20688037]
[1739728991662,0.00215463,96980.0,96979.0,0.20688037]
[1739728993158,0.00215463,96980.0,96979.0,0.21669855]
[1739728995060,0.00215463,96980.0,96979.0,0.001]
[1739728998562,0.00215463,96980.0,96979.0,0.21722023]
[1739728998768,0.00215463,96980.0,96979.0,0.2072002]
[1739729000562,0.00215463,96980.0,96979.0,0.001]
[1739729000762,0.20835263,96980.0,96979.0,0.001]
[1739729001655,0.56915263,96980.0,96979.0,0.001]
[1739729006266,0.61929518,96980.0,96979.0,0.00068017]
[1739729006665,0.2062108,96974.0,96973.0,0.01010487]
[1739729006871,0.2062108,96974.0,96970.0,0.2062184]
[1739729006872,0.2062141,96973.0,96970.0,0.2062184]
[1739729007063,0.063,96972.0,96970.0,0.2062184]
[1739729007874,0.2062172,96971.0,96970.0,0.2062184]